bitfinex/quotes_ETHUSD_20260302
["timestamp","ask_amount","ask_price","bid_price","bid_amount"]
[1772492229352,2.66606396,2052.8,2052.7,0.001]
[1772492229962,1.21784879,2052.8,2052.7,0.001]
[1772492230166,2.66804506,2052.9,2052.7,0.001]
[1772492232162,1.44821517,2052.8,2052.7,0.001]
[1772492233062,1.21982989,2052.9,2052.7,0.001]
[1772492233235,2.66804506,2052.9,2052.7,0.001]
[1772492233436,1.45021517,2052.9,2052.7,0.001]
[1772492233752,1.21969741,2053.1,2052.8,1.42342167]
[1772492234537,0.002,2053.1,2052.8,1.42342167]
[1772492235167,0.002,2053.1,2052.9,1.42342167]
[1772492236036,0.002,2053.3,2053.2,1.42342167]
[1772492236770,0.002,2053.5,2053.2,1.42342167]
[1772492237085,0.002,2053.7,2053.5,1.46342993]
[1772492237239,0.002,2053.8,2053.6,1.46342993]
[1772492238768,0.002,2053.8,2053.7,1.44218109]
[1772492239840,0.002,2054.1,2053.8,1.44218109]
[1772492240065,0.002,2054.0,2053.8,1.44218109]
[1772492241035,0.002,2054.1,2053.9,1.91670006]
[1772492241237,0.004,2054.1,2053.9,1.91670006]
[1772492242076,0.002,2054.3,2054.1,1.44218109]
[1772492242653,0.002,2054.3,2054.2,1.44218109]
[1772492243146,0.002,2054.3,2054.2,2.65919988]
[1772492243572,0.002,2054.3,2054.2,1.21701879]
[1772492245786,0.002,2054.3,2054.2,2.65919988]
[1772492246490,0.002,2054.3,2054.2,1.21701879]
[1772492247578,0.002,2054.3,2054.2,1.16701879]
[1772492250694,0.002,2054.3,2054.2,2.60919988]
[1772492250889,1.21878557,2054.6,2054.3,1.44218109]
[1772492251068,2.72388591,2054.6,2054.3,1.44218109]
[1772492255195,2.72388591,2054.6,2054.2,1.16701879]
[1772492255507,1.50710034,2054.6,2054.3,1.44218109]
[1772492256510,1.50710034,2054.6,2054.3,2.65913544]
[1772492256881,1.50710034,2054.6,2054.3,1.21695435]
[1772492258607,1.50710034,2054.6,2054.3,2.65913544]
[1772492259405,2.72390088,2054.6,2054.2,1.21697276]
[1772492259590,1.50510034,2054.5,2054.2,1.21697276]
[1772492260210,1.50510034,2054.5,2053.8,2.66041256]
[1772492260211,1.50510034,2054.4,2053.8,2.66041256]
[1772492260724,2.72205988,2054.3,2053.9,1.44218109]
[1772492261018,2.72205988,2054.3,2053.9,3.33518109]
[1772492261418,1.50510034,2054.2,2053.8,1.44318109]
[1772492261592,1.50510034,2054.2,2053.8,1.894]
[1772492261794,1.50510034,2054.2,2053.9,1.44218109]
[1772492262518,1.50510034,2054.2,2053.8,1.894]
[1772492263019,2.72217837,2054.1,2053.8,1.894]
[1772492264146,2.72217837,2054.1,2054.0,0.001]
[1772492265739,1.691597,2054.1,2053.5,0.001]
[1772492265919,1.50510034,2054.0,2053.5,0.001]
[1772492268036,1.61970985,2053.8,2053.5,0.001]
[1772492268917,1.61970985,2053.8,2053.5,1.60878945]
[1772492269737,1.21719655,2053.9,2053.5,1.60878945]
[1772492269940,2.8369064,2053.9,2053.5,1.60878945]
[1772492270341,2.8369064,2053.9,2053.6,1.60778945]
[1772492270638,2.8369064,2053.9,2053.5,1.60878945]
[1772492271724,1.61970985,2053.8,2053.5,1.60878945]
[1772492271922,1.61970985,2053.9,2053.6,1.60778945]
[1772492272840,1.21725581,2053.8,2053.6,1.60778945]
[1772492274152,1.61970985,2053.7,2053.5,0.001]
[1772492274636,1.61970985,2053.8,2053.5,1.60878945]
[1772492275869,1.61970985,2053.8,2053.7,0.001]
[1772492276166,1.62170985,2053.8,2053.7,0.001]
[1772492276670,2.83896566,2053.8,2053.7,0.001]
[1772492278968,5.34454429,2054.3,2053.8,1.60778945]
[1772492278969,0.002,2054.3,2053.8,1.60778945]
[1772492279147,0.002,2054.2,2054.0,1.60778945]
[1772492280676,4.86690144,2054.7,2054.2,1.60778945]
[1772492280677,1.21881289,2054.6,2054.2,1.60778945]
[1772492280878,1.22481289,2054.6,2054.2,1.60778945]
[1772492282559,1.61970985,2054.5,2054.0,2.8248821]
[1772492282752,1.61970985,2054.5,2054.0,1.60778945]
[1772492286681,1.21690031,2054.4,2054.1,1.60778945]
[1772492287682,2.84261016,2054.4,2054.1,1.60778945]
[1772492288183,1.62570985,2054.4,2054.1,1.60778945]
[1772492288354,1.62570985,2054.4,2054.2,0.001]
[1772492288555,0.002,2054.3,2054.2,0.001]
[1772492289953,0.002,2054.3,2054.2,1.60878945]
[1772492290699,0.002,2054.3,2054.2,0.001]
[1772492291286,1.62170985,2054.3,2054.2,0.001]
[1772492291784,0.002,2054.3,2054.2,1.60824795]
[1772492292299,0.002,2054.3,2054.2,0.001]
[1772492294486,0.002,2054.5,2054.2,1.60737548]
[1772492294797,0.006,2054.4,2054.2,1.60737548]
[1772492296516,0.006,2054.4,2054.2,2.82438637]
[1772492296708,0.006,2054.4,2054.2,2.82098731]
[1772492297408,0.006,2054.4,2054.2,1.60397642]
[1772492298032,0.006,2054.4,2054.2,2.82099066]
[1772492298521,0.006,2054.4,2054.2,1.60397642]
[1772492301022,0.002,2054.3,2054.2,2.82099503]
[1772492301924,0.002,2054.3,2054.2,4.71899503]
[1772492309818,0.002,2054.3,2054.2,3.11601861]
[1772492310015,0.008,2054.3,2054.2,1.909]
[1772492310424,1.60895704,2054.3,2054.2,0.001]
[1772492310636,1.60895704,2054.3,2053.9,1.21714738]
[1772492310835,1.60895704,2054.3,2054.1,1.909]
[1772492311345,1.60695704,2054.2,2054.1,1.909]
[1772492312941,1.60895704,2054.2,2054.1,1.909]
[1772492313120,1.60895704,2054.2,2054.1,1.91]
[1772492313319,1.60895704,2054.2,2054.1,0.001]
[1772492314017,0.002,2054.2,2054.1,0.001]
[1772492314540,1.60895704,2054.2,2054.1,0.001]
[1772492315431,2.82597583,2054.2,2054.1,0.001]
[1772492316030,1.60695704,2054.1,2053.9,0.001]
[1772492316848,1.60695704,2054.1,2053.7,0.001]
[1772492317230,1.21713729,2054.0,2053.7,0.001]
[1772492317422,1.60695704,2053.9,2053.7,0.001]
[1772492320156,2.82416304,2053.9,2053.7,0.001]
[1772492320656,1.60695704,2053.9,2053.7,0.001]
[1772492320859,2.82415946,2053.9,2053.7,0.001]
[1772492321357,2.82415946,2053.9,2053.7,0.002]
[1772492322644,1.60695704,2053.8,2053.5,0.001]
[1772492323961,1.60695704,2053.8,2053.5,2.80112019]
[1772492325254,1.60695704,2053.8,2053.5,0.001]
[1772492325457,2.82421285,2053.8,2053.7,0.001]
[1772492326459,1.60695704,2053.8,2053.7,0.001]
[1772492328379,2.82421285,2053.8,2053.7,0.001]
[1772492328975,1.60695704,2053.8,2053.7,0.001]
[1772492330681,2.82421285,2053.8,2053.7,0.001]
[1772492331872,1.524116,2053.7,2053.5,0.001]
[1772492332774,2.74149036,2053.6,2053.5,0.001]
[1772492332977,1.524116,2053.5,2053.2,0.001]
[1772492335187,1.524116,2053.3,2053.2,0.001]
[1772492336281,1.524116,2053.3,2052.7,0.001]
[1772492337193,1.524116,2053.1,2052.7,0.001]
[1772492338473,1.524116,2053.1,2052.9,0.001]
[1772492339977,2.74184615,2053.0,2052.9,0.001]
[1772492340177,1.524116,2052.9,2052.7,0.001]
[1772492340377,1.524116,2052.8,2052.2,0.001]
[1772492340584,0.71110087,2052.9,2052.2,0.001]
[1772492340585,1.524116,2052.6,2052.2,0.001]
[1772492340991,1.929,2052.7,2051.6,1.54507576]
[1772492340992,1.524116,2052.4,2051.6,1.54507576]
[1772492341193,1.524116,2052.4,2050.8,11.27590669]
[1772492341194,1.524116,2052.2,2051.4,1.54507576]
[1772492341870,1.524116,2052.2,2051.2,1.54507576]
[1772492342093,1.524116,2052.0,2051.3,1.54507576]
[1772492342678,1.92936508,2052.1,2050.7,3.47527162]
[1772492342679,1.524116,2051.6,2050.7,3.47527162]
[1772492343614,1.524116,2051.6,2050.5,0.71110087]
[1772492343819,1.524116,2051.4,2050.5,1.93027278]
[1772492344192,1.524116,2051.4,2050.9,0.71110087]
[1772492344397,1.524116,2051.7,2051.1,2.25617663]
[1772492344597,1.524116,2051.7,2051.2,1.54507576]
[1772492346592,1.524116,2051.7,2051.3,1.21873933]
[1772492347588,1.524116,2051.9,2051.4,1.54507576]
[1772492347799,1.524116,2052.1,2051.4,1.54507576]
[1772492348924,1.524116,2052.1,2051.5,2.76369628]
[1772492349995,4.87187767,2052.6,2051.6,1.54507576]
[1772492349996,1.524116,2052.5,2051.6,1.54507576]
[1772492350842,0.002,2051.9,2051.8,1.54507576]
[1772492351144,1.524116,2052.4,2051.8,1.54507576]
[1772492351348,0.002,2052.2,2051.8,1.54507576]
[1772492351843,1.524116,2052.8,2052.0,1.54507576]
[1772492352027,1.524116,2052.8,2052.2,1.54507576]
[1772492352823,1.223,2053.4,2052.3,2.76322125]
[1772492352824,1.524116,2053.0,2052.3,2.76322125]
[1772492353444,1.524116,2053.0,2052.4,1.54507576]
[1772492353626,1.524116,2053.3,2052.5,1.54507576]
[1772492355117,1.524116,2053.5,2052.7,1.54507576]
[1772492357352,1.524116,2053.5,2052.8,2.75683505]
[1772492357551,1.524116,2053.5,2052.9,1.53898626]
[1772492358010,0.002,2053.6,2053.0,1.56276025]
[1772492359045,0.002,2053.6,2052.9,1.905]
[1772492359046,0.002,2053.6,2053.1,2.37301724]
[1772492359245,0.002,2053.6,2053.2,1.56276025]
[1772492359758,0.002,2053.6,2053.3,1.21755223]
[1772492361757,0.002,2053.8,2053.4,1.56276025]
[1772492361939,0.002,2053.8,2053.5,1.56276025]
[1772492362760,0.002,2053.8,2053.3,3.12455223]
[1772492362761,0.002,2053.4,2053.3,3.12455223]
[1772492362975,0.002,2053.6,2053.3,3.12455223]
[1772492363131,1.58439363,2053.6,2053.1,1.56276025]
[1772492363453,1.58439363,2053.6,2052.7,2.78066837]
[1772492363657,1.58239363,2053.4,2052.7,1.21790812]
[1772492365873,1.58239363,2053.2,2052.7,1.21790812]
[1772492366468,1.58239363,2053.2,2052.6,1.21793303]
[1772492366775,1.58239363,2053.2,2052.3,11.10264037]
[1772492366776,1.58239363,2053.2,2052.3,2.78087277]
[1772492366973,1.58239363,2053.2,2052.1,1.908]
[1772492367277,1.58239363,2053.2,2051.9,2.78109632]
[1772492371375,1.58239363,2053.0,2051.9,2.78109632]
[1772492373165,1.912,2052.9,2051.9,2.78109632]
[1772492373369,1.58239363,2052.8,2051.9,2.78109632]
[1772492373565,1.58239363,2052.6,2051.7,3.47076025]
[1772492373863,1.58239363,2052.6,2051.7,1.56276025]
[1772492374663,1.58239363,2052.6,2051.8,1.56276025]
[1772492374971,1.58239363,2052.6,2052.1,0.001]
[1772492375390,1.58239363,2052.6,2051.9,0.001]
[1772492375568,1.58239363,2052.5,2051.9,1.56376025]
[1772492377590,1.58239363,2052.5,2052.0,1.21832358]
[1772492377770,2.80042127,2052.5,2052.0,1.21832358]
[1772492378374,2.80042463,2052.5,2052.0,1.21832358]
[1772492378684,1.58239363,2052.4,2052.0,1.21832358]
[1772492380084,1.58239363,2052.3,2051.9,1.2193796]
[1772492380802,1.58239363,2052.3,2051.9,0.001]
[1772492381099,1.58239363,2052.3,2051.9,1.21937272]
[1772492381271,1.58239363,2052.3,2051.9,0.001]
[1772492381986,2.80055909,2052.3,2051.9,0.001]
[1772492383708,1.58239363,2052.3,2051.9,1.55620597]
[1772492383920,1.58239363,2052.9,2051.9,1.55620597]
[1772492384119,2.80027481,2052.8,2052.1,1.55520597]
[1772492384422,1.58239363,2052.7,2052.1,1.55520597]
[1772492384988,1.21788118,2052.8,2052.1,1.55520597]
[1772492385196,1.21760718,2053.3,2052.4,1.55342135]
[1772492385398,2.80193043,2053.4,2052.4,1.55342135]
[1772492386174,2.80193043,2053.4,2052.6,1.55162861]
[1772492387030,0.002,2053.6,2053.2,7.11905172]
[1772492387205,0.002,2053.9,2053.3,1.54784228]
[1772492387206,1e-08,2053.9,2053.3,1.54784228]
[1772492387801,0.002,2053.7,2053.3,1.54784228]
[1772492388005,1e-08,2053.9,2053.3,1.54669924]
[1772492388417,1e-08,2053.9,2053.3,1.21755223]
[1772492388721,1e-08,2053.9,2053.3,2.76268587]
[1772492390094,1.49900609,2053.9,2053.2,1.21756644]
[1772492390403,1.49900609,2053.9,2053.1,2.76097054]
[1772492390404,1.49900608,2053.7,2053.1,2.76097054]
[1772492391319,1.49900608,2053.7,2053.1,1.217639]
[1772492392323,1.49900608,2053.3,2052.5,2.75775391]
[1772492393221,1.49900608,2053.3,2052.5,4.66575391]
[1772492394225,0.002,2054.0,2052.6,1.53611277]
[1772492394525,0.002,2054.3,2053.8,3.90733202]
[1772492394814,0.002,2054.4,2053.9,1.53431478]
[1772492396521,0.002,2054.4,2054.0,2.77768057]
[1772492396718,0.002,2054.4,2054.1,1.55866079]
[1772492398127,0.002,2054.4,2054.2,1.55677802]
[1772492398312,0.002,2054.6,2054.3,1.55677802]
[1772492398509,0.002,2054.7,2054.5,1.55677802]
[1772492400424,1.21872263,2054.7,2054.1,1.21703986]
[1772492400738,0.002,2054.7,2054.1,3.13303986]
[1772492400898,1.50100608,2054.7,2054.1,1.21707597]
[1772492401100,1.50100608,2054.7,2054.0,1.916]
[1772492401623,1.50100608,2054.7,2053.6,2.76678871]
[1772492401825,1.49900608,2054.6,2053.5,0.001]
[1772492402122,1.49900608,2054.0,2053.5,0.001]
[1772492402323,1.49900608,2054.0,2053.3,0.001]
[1772492402531,1.904,2054.2,2053.4,1.54861122]
[1772492402532,1.49900608,2054.2,2053.4,1.54861122]
[1772492402700,1.49900608,2054.2,2053.4,3.92162846]
[1772492402898,4.86753818,2054.5,2053.5,1.54861122]
[1772492402899,2.71585065,2054.5,2053.5,1.54861122]
[1772492403114,2.71585026,2054.5,2053.5,1.54861122]
[1772492403330,1.49900608,2054.5,2053.5,1.54861122]
[1772492403730,1.49900608,2054.5,2053.7,2.37301724]
[1772492404133,1.49900608,2054.5,2053.7,3.91978634]
[1772492404738,1.49900608,2054.5,2053.8,1.21725581]
[1772492405436,1.21872417,2054.7,2053.9,2.402]
[1772492405437,0.002,2054.7,2053.9,2.402]
[1772492405852,0.002,2054.7,2053.9,3.94504156]
[1772492406331,0.002,2054.7,2053.9,2.402]
[1772492406332,1.50100608,2054.7,2053.9,2.402]
[1772492406832,1.50100608,2054.7,2054.0,1.21713729]
[1772492407543,0.002,2054.7,2054.0,5.13131499]
[1772492408945,0.002,2054.7,2054.1,1.53740016]
[1772492409146,0.002,2054.8,2054.1,1.53740016]
[1772492409147,0.002,2054.9,2054.2,1.53740016]
[1772492409537,0.002,2054.9,2054.3,2.37301724]
[1772492409738,0.002,2054.9,2054.4,1.53351937]
[1772492410056,0.002,2055.1,2054.7,1.53351937]
[1772492410430,1.49900608,2055.6,2054.7,1.53351937]
[1772492410842,1.49900608,2055.6,2054.8,1.21666342]
[1772492411256,1.49900608,2055.6,2054.8,5.12148966]
[1772492411638,1.49900608,2055.6,2054.9,1.52999262]
[1772492411959,4.81501724,2056.5,2054.8,3.58968066]
[1772492411960,1.49900608,2056.1,2055.2,1.52999262]
[1772492413238,1.49900608,2056.1,2055.3,1.21636744]
[1772492413626,0.002,2055.9,2055.3,1.21636744]
[1772492414027,0.002,2055.9,2055.3,5.1156518]
[1772492416369,0.002,2055.9,2055.4,1.52255435]
[1772492416555,0.002,2055.9,2055.5,2.476]
[1772492417149,0.002,2055.9,2055.5,3.99666727]
[1772492417852,1.49900608,2056.3,2055.6,1.21618992]
[1772492419071,1.49900608,2056.3,2055.7,1.42433741]
[1772492420862,1.49900608,2056.3,2055.6,4.52902888]
[1772492421061,1.49900608,2056.3,2055.6,5.95336629]
[1772492421650,1.49900608,2056.3,2055.7,1.42433741]
[1772492423283,1.49900608,2056.3,2055.8,1.2160716]
[1772492423988,1.49900608,2056.3,2055.9,2.511]
[1772492424856,1.45330097,2056.9,2055.8,2.64040901]
[1772492425058,1.45330097,2056.9,2055.8,1.2160716]
[1772492425358,1.45330097,2056.9,2055.9,2.519]
[1772492425359,1.45330097,2056.7,2055.9,2.519]
[1772492425579,0.002,2056.1,2055.9,2.519]
[1772492427577,0.002,2056.1,2055.9,3.73498732]
[1772492428196,1.45530097,2056.1,2055.8,0.001]
[1772492428403,1.45530097,2056.1,2055.9,2.52]
[1772492430904,0.002,2056.1,2055.9,3.73600744]
[1772492431677,1.45530097,2056.1,2055.9,2.52]
[1772492432203,1.45530097,2056.1,2055.9,3.73600932]
[1772492433100,1.45330097,2056.2,2055.9,3.73600932]
[1772492434593,0.002,2056.3,2055.9,3.73600932]
[1772492435509,1.45530097,2056.3,2055.9,3.73600932]
[1772492435814,0.002,2056.3,2055.9,3.73600932]
[1772492436198,0.002,2056.3,2055.9,5.16034673]
[1772492436600,1.45530097,2056.3,2055.9,3.73600932]
[1772492437232,1.45530097,2056.3,2055.9,2.52]
[1772492437233,1.45330097,2056.2,2055.9,2.52]
[1772492437521,1.45330097,2056.2,2055.9,3.68599732]
[1772492437930,0.002,2056.3,2056.1,0.001]
[1772492438091,0.002,2056.6,2056.2,3.94733741]
[1772492438287,0.002,2056.6,2056.2,2.523]
[1772492438601,1.45043728,2056.6,2056.2,2.523]
[1772492439317,0.002,2056.5,2056.3,1.2157759]
[1772492439827,1.45043728,2056.6,2056.3,1.2157759]
[1772492440722,1.45043728,2056.6,2054.6,5.77768971]
[1772492440723,1.45330097,2054.9,2054.6,5.77768971]
[1772492440946,3.31283896,2056.4,2054.7,4.2736735]
[1772492440947,0.47201441,2055.4,2054.7,4.2736735]
[1772492441159,3.5443315,2055.1,2054.7,0.86671561]
[1772492441363,2.32780906,2054.9,2054.6,2.53]
[1772492441647,2.90976133,2054.8,2054.7,2.37575314]
[1772492442147,2.90976133,2054.8,2054.4,1.42433741]
[1772492442322,2.90976133,2054.7,2054.6,2.53]
[1772492442820,2.90976133,2054.7,2054.6,1.32069413]
[1772492443027,2.90976133,2054.7,2054.4,1.42433741]
[1772492443227,4.73489815,2055.1,2054.4,1.42433741]
[1772492443433,2.90203143,2055.0,2054.4,1.42433741]
[1772492443636,2.90203143,2054.9,2054.4,1.42433741]
[1772492443845,2.90203143,2054.8,2054.4,1.42433741]
[1772492444053,2.66960225,2055.5,2054.7,3.31283896]
[1772492444347,2.474,2056.1,2054.9,1.42433741]
[1772492444348,1.45330097,2055.9,2054.9,1.42433741]
[1772492444723,1.45330097,2055.8,2054.9,1.42433741]
[1772492445045,1.45330097,2055.8,2054.8,2.53]
[1772492445436,1.45330097,2055.6,2054.9,1.21660421]
[1772492445638,1.45330097,2055.6,2054.8,3.74662171]
[1772492445847,1.45330097,2055.6,2053.6,4.86868047]
[1772492445848,1.45330097,2055.1,2053.8,1.42433741]
[1772492446513,1.45330097,2055.1,2053.8,3.95233741]
[1772492446915,1.45330097,2055.1,2053.9,1.42433741]
[1772492447647,1.69821046,2054.9,2053.9,1.42433741]
[1772492449630,2.90641186,2054.8,2053.9,1.42433741]
[1772492449832,2.90641186,2054.8,2054.0,1.98211277]
[1772492450822,2.90641186,2054.8,2054.1,0.001]
[1772492453949,1.21678185,2054.6,2054.1,0.001]
[1772492454945,2.88541275,2054.6,2054.1,0.001]
[1772492456252,1.6644153,2054.5,2054.1,0.001]
[1772492457330,1.21678185,2054.6,2054.1,0.001]
[1772492457767,1.21678185,2054.6,2053.9,0.001]
[1772492457768,1.65598652,2054.5,2053.9,0.001]
[1772492457932,1.65598652,2054.5,2053.7,0.001]
[1772492458272,1.65598652,2054.5,2053.7,1.98311277]
[1772492458273,2.87188683,2054.4,2053.7,1.98311277]
[1772492458775,1.65085728,2054.3,2053.7,1.98311277]
[1772492460359,6.51393264,2054.6,2053.8,1.98211277]
[1772492460560,6.50973255,2054.6,2053.8,1.98211277]
[1772492461135,1.64245433,2054.5,2053.8,1.98211277]
[1772492461339,4.86727822,2054.6,2053.8,1.98211277]
[1772492461957,6.50553303,2054.6,2053.8,1.98211277]
[1772492462154,6.50553303,2054.6,2054.0,1.98211277]
[1772492465411,6.50553303,2054.6,2054.1,1.98211277]
[1772492466170,6.50553303,2054.6,2053.9,3.20026271]
[1772492466495,6.50553303,2054.6,2054.0,1.98211277]
[1772492467969,1.61312229,2054.5,2054.0,1.98211277]
[1772492468377,1.21690031,2054.4,2054.0,3.19924559]
[1772492469887,1.79622333,2054.3,2053.9,0.001]
[1772492470386,1.21701879,2054.2,2053.9,0.001]
[1772492470566,1.79785302,2054.1,2053.9,0.001]
[1772492471459,1.79282158,2054.0,2053.6,0.001]
[1772492471657,1.79282158,2053.8,2053.3,0.001]
[1772492471862,1.79282158,2053.8,2053.2,0.002]
[1772492472059,1.79282158,2053.6,2053.0,0.001]
[1772492472462,1.21743364,2053.5,2053.0,0.001]
[1772492472662,1.78909075,2053.4,2053.0,0.001]
[1772492474599,2.99859591,2053.3,2053.0,0.001]
[1772492475499,1.77704049,2053.2,2052.5,1.98211277]
[1772492475664,1.77704049,2053.2,2052.3,5.71121343]
[1772492476006,3.70055223,2053.3,2052.2,1.98211277]
[1772492476007,1.77704049,2053.0,2052.2,1.98211277]
[1772492476296,1.77704049,2053.0,2052.1,0.001]
[1772492476297,1.77704049,2052.8,2052.1,0.001]
[1772492476469,1.77205535,2052.6,2051.9,0.001]
[1772492479170,1.76601544,2052.5,2051.9,2.08571577]
[1772492479391,1.76601544,2052.5,2051.9,0.001]
[1772492480866,1.76601544,2052.5,2051.9,2.08571577]
[1772492481269,1.75798946,2052.7,2051.9,3.30405537]
[1772492481905,1.75798946,2052.7,2052.0,2.08471577]
[1772492482689,4.22698946,2052.7,2052.0,2.08471577]
[1772492483604,1.74594922,2052.9,2052.1,2.08471577]
[1772492486403,2.96376091,2052.9,2052.3,2.08471577]
[1772492486608,1.21781169,2052.9,2052.3,2.08471577]
[1772492486792,1.21781169,2052.9,2051.9,0.001]
[1772492486793,1.73393745,2052.6,2051.9,0.001]
[1772492488380,1.72994123,2052.3,2051.9,0.001]
[1772492488802,1.72994123,2052.3,2052.1,0.001]
[1772492489010,1.72994123,2052.3,2051.9,0.001]
[1772492489222,1.72994123,2052.3,2051.6,1.21955999]
[1772492489512,1.72994123,2052.3,2051.6,2.08571577]
[1772492490812,2.93623687,2052.2,2051.6,2.08571577]
[1772492491831,1.71405048,2052.1,2051.6,0.001]
[1772492492397,1.71405048,2052.1,2051.6,2.08571577]
[1772492492686,1.21820485,2052.2,2051.6,2.08571577]
[1772492493388,1.71006991,2052.2,2051.6,2.08571577]
[1772492493927,1.70609524,2052.4,2051.7,2.08471577]
[1772492494901,3.6750122,2052.6,2051.7,2.08471577]
[1772492495109,1.2180122,2052.6,2051.8,2.08471577]
[1772492496022,1.70013926,2052.7,2051.9,1.21838296]
[1772492496426,1.70013926,2052.7,2051.9,2.08471577]
[1772492497499,1.70013926,2052.7,2051.8,1.21840291]
[1772492497688,1.70013926,2052.7,2051.7,3.30317147]
[1772492498139,1.69022068,2052.5,2051.7,3.30317147]
[1772492500887,1.67836639,2052.3,2051.8,0.001]
[1772492503116,1.66960331,2052.1,2051.8,0.001]
[1772492504904,1.66960331,2052.1,2051.6,0.001]
[1772492505107,1.66087984,2051.9,2051.3,0.001]
[1772492506014,1.66087984,2051.9,2050.9,2.08571577]
[1772492506208,1.66087984,2051.9,2050.9,3.30467898]
[1772492506611,1.66087984,2051.9,2050.9,2.08571577]
[1772492507001,1.66087984,2051.9,2050.9,3.30467275]
[1772492507404,1.652336,2051.7,2050.9,3.30467275]
[1772492507790,1.652336,2051.7,2050.9,2.08571577]
[1772492508224,1.64831647,2051.6,2050.9,0.001]
[1772492508930,1.64399808,2051.4,2050.9,0.001]
[1772492509508,2.86273741,2051.3,2050.9,0.001]
[1772492509706,1.63967783,2051.2,2050.9,0.001]
[1772492509907,1.21873933,2051.3,2050.9,0.001]
[1772492510206,2.85841716,2051.3,2050.9,0.001]
[1772492510407,1.63967783,2051.2,2050.6,0.001]
[1772492512224,1.63014234,2051.0,2050.6,0.001]
[1772492513930,1.63014234,2051.0,2050.8,0.001]
[1772492514302,1.21897703,2050.9,2050.6,0.001]
[1772492517034,2.82783442,2050.9,2050.6,0.001]
[1772492517235,1.60885739,2050.8,2050.6,0.001]
[1772492518137,1.60885739,2050.8,2050.1,1.99693774]
[1772492518302,3.16199504,2050.5,2049.8,3.2165248]
[1772492518505,3.16199504,2050.5,2049.9,1.99693774]
[1772492519937,1.94278022,2050.4,2049.9,1.99693774]
[1772492520140,1.94278022,2050.4,2049.8,1.21958706]
[1772492520333,1.94278022,2050.4,2049.8,1.99693774]
[1772492520631,3.16211397,2050.3,2049.8,1.99693774]
[1772492521538,1.94278022,2050.2,2049.6,1.99693774]
[1772492521738,1.94278022,2050.1,2049.6,1.99693774]
[1772492522040,1.94278022,2050.1,2049.3,1.99693774]
[1772492522639,1.94278022,2050.1,2049.1,5.75758755]
[1772492522640,1.94278022,2049.6,2049.1,0.87751628]
[1772492524638,1.2198097,2049.5,2049.1,0.87751628]
[1772492524821,3.16258992,2049.5,2049.1,0.87751628]
[1772492525534,1.94278022,2049.4,2049.1,0.87751628]
[1772492525919,1.94278022,2049.4,2048.7,1.99693774]
[1772492526317,4.13138001,2049.3,2048.7,1.99693774]
[1772492526642,1.75240001,2049.2,2048.7,1.99693774]
[1772492526843,1.22004782,2049.1,2048.7,1.99693774]
[1772492527343,1.22004782,2049.1,2049.0,0.001]
[1772492527749,1.22004782,2049.1,2048.5,1.94793774]
[1772492528036,3.01854119,2049.1,2048.8,0.001]
[1772492528633,1.79849337,2049.1,2048.8,0.001]
[1772492528833,1.22003078,2049.2,2048.8,1.99793774]
[1772492529211,1.2198097,2049.5,2048.9,1.99693774]
[1772492529412,3.6168097,2049.5,2048.9,1.99693774]
[1772492529632,2.397,2049.5,2048.9,1.99693774]
[1772492529843,0.002,2049.9,2049.1,1.99693774]
[1772492529844,2.4,2049.8,2049.1,1.99693774]
[1772492530256,0.002,2049.9,2049.1,1.99693774]
[1772492531003,3.62147606,2050.1,2049.4,1.99693774]
[1772492531004,0.002,2050.1,2049.4,1.99693774]
[1772492531115,0.002,2050.1,2049.5,1.99693774]
[1772492533139,0.002,2050.1,2049.7,1.99693774]
[1772492535036,0.002,2050.1,2049.8,1.21963118]
[1772492535266,0.002,2050.1,2049.8,3.21656892]
[1772492540058,1.58835044,2050.7,2050.0,1.97531356]
[1772492540260,4.87600812,2050.9,2050.0,1.97531356]
[1772492540261,1.21903647,2050.8,2050.0,1.97531356]
[1772492540771,4.87600812,2050.9,2050.2,1.97531356]
[1772492541160,1.21897703,2050.9,2050.2,1.97531356]
[1772492541749,6.46412758,2051.0,2050.2,1.97531356]
[1772492541750,1.21894074,2051.0,2050.2,1.97531356]
[1772492541947,3.58890715,2051.1,2050.2,1.97531356]
[1772492542470,1.21878708,2051.3,2050.2,1.97531356]
[1772492542846,4.87682307,2051.4,2050.4,1.97531356]
[1772492542847,1.22067992,2051.4,2050.4,1.97531356]
[1772492543175,0.002,2051.4,2050.6,1.97531356]
[1772492543473,0.002,2051.6,2051.1,1.97531356]
[1772492543649,0.002,2051.6,2051.2,1.97531356]
[1772492544244,0.002,2051.6,2051.3,1.97531356]
[1772492544646,2.72110925,2051.6,2050.8,1.97531356]
[1772492544842,2.72110925,2051.6,2050.8,3.194295]
[1772492545245,2.72110925,2051.6,2050.9,1.97531356]
[1772492545471,1.22056455,2051.6,2050.9,1.97531356]
[1772492545671,0.002,2051.6,2050.9,1.97531356]
[1772492546177,1.22056138,2051.6,2050.9,1.97531356]
[1772492547155,1.22056138,2051.6,2051.1,1.97531356]
[1772492547156,0.002,2051.6,2051.1,1.97531356]
[1772492548784,0.002,2051.6,2050.3,1.97531356]
[1772492548785,1.43366247,2051.3,2050.3,1.97531356]
[1772492549466,1.21879875,2051.2,2050.5,1.97531356]
[1772492551491,1.40113682,2051.2,2050.3,1.97531356]
[1772492551659,1.40113682,2051.2,2050.1,1.97531356]
[1772492551866,1.40113682,2051.2,2050.1,3.1947618]
[1772492552065,0.002,2051.0,2050.1,3.1947618]
[1772492552268,1.38709708,2051.0,2050.1,3.1947618]
[1772492552465,1.38709708,2051.0,2050.1,1.97531356]
[1772492552953,1.38709708,2051.0,2050.1,3.19476431]
[1772492553296,1.38709708,2051.0,2050.1,1.97531356]
[1772492553657,2.57243278,2050.9,2050.1,1.97531356]
[1772492554783,1.337851,2050.8,2050.1,1.97531356]
[1772492555854,1.21909591,2050.7,2050.1,1.97531356]
[1772492556464,1.3223881,2050.6,2050.0,0.001]
[1772492557881,1.21921482,2050.5,2050.0,1.97631356]
[1772492559392,1.21921482,2050.5,2050.0,0.001]
[1772492559393,1.2768353,2050.4,2050.0,0.001]
[1772492559572,1.2768353,2050.4,2049.8,0.001]
[1772492559981,1.21933375,2050.3,2049.8,0.001]